bitfinex/quotes_ETHUSD_20250331
["timestamp","ask_amount","ask_price","bid_price","bid_amount"]
[1743402122467,9.0763077,1809.0,1808.6,16.76324]
[1743402122661,9.0763077,1809.0,1808.6,11.23412]
[1743402122953,0.8311,1809.0,1808.7,5.5288]
[1743402124066,0.8311,1809.0,1808.7,5.52862]
[1743402125805,6.35915,1809.0,1808.6,11.23412]
[1743402125997,6.35915,1809.0,1808.6,16.76306]
[1743402126995,6.35915,1809.0,1808.6,11.23394]
[1743402127579,6.35915,1809.0,1808.6,16.76288]
[1743402127775,0.8311,1809.0,1808.7,5.52877]
[1743402127992,0.8311,1809.2,1808.9,5.52795]
[1743402128489,0.8311,1809.2,1809.0,5.52789]
[1743402129602,6.05,1809.3,1809.1,5.52754]
[1743402129804,0.8311,1809.4,1809.1,5.52754]
[1743402130006,0.8311,1809.4,1809.1,6.708497]
[1743402130194,6.05,1809.5,1809.2,5.52717]
[1743402130595,11.5764,1809.5,1809.1,6.708637]
[1743402130923,5.52669,1809.4,1809.1,6.708637]
[1743402131068,5.52669,1809.4,1809.1,5.52758]
[1743402132213,9.0742877,1809.6,1809.2,5.52718]
[1743402132370,6.3572,1809.6,1809.2,5.52718]
[1743402133410,11.88355,1809.6,1809.2,5.52718]
[1743402133885,0.8311,1809.6,1809.2,5.52714]
[1743402134213,6.35722,1809.6,1809.2,6.079854]
[1743402134411,6.35722,1809.6,1809.2,11.606934]
[1743402134872,0.8311,1809.6,1809.3,5.52698]
[1743402135211,0.8311,1809.6,1809.2,6.079794]
[1743402135406,6.35718,1809.6,1809.2,6.079794]
[1743402136315,6.35718,1809.6,1809.2,11.606954]
[1743402136674,6.35718,1809.6,1809.2,6.079794]
[1743402137178,0.8311,1809.6,1809.3,5.52686]
[1743402138341,0.7995,1810.0,1809.7,5.52577]
[1743402138478,5.52426,1810.2,1809.8,5.52527]
[1743402138677,0.7995,1810.2,1809.9,5.52502]
[1743402138904,0.7995,1810.5,1810.1,5.52439]
[1743402139120,6.32284,1810.5,1810.1,5.52439]
[1743402139322,7.507428,1810.5,1810.1,5.52439]
[1743402139734,10.507438,1810.5,1810.1,5.52434]
[1743402139935,7.507438,1810.5,1810.1,5.52434]
[1743402140230,6.32285,1810.5,1810.1,5.52434]
[1743402142020,0.7995,1810.5,1810.2,5.52424]
[1743402142821,0.7995,1810.5,1810.1,5.52434]
[1743402143119,6.32309,1810.5,1810.0,6.35166]
[1743402143329,5.52369,1810.4,1810.0,6.35166]
[1743402144623,5.52369,1810.4,1810.0,7.24517997]
[1743402144803,5.52369,1810.4,1810.0,12.76984997]
[1743402145329,5.52369,1810.4,1810.0,0.89351997]
[1743402145521,5.52452,1810.2,1809.8,11.05056]
[1743402145711,9.0405377,1810.3,1809.9,5.52496]
[1743402146020,9.0405377,1810.3,1809.9,11.04992]
[1743402146425,9.0405377,1810.3,1809.9,5.52493]
[1743402147516,3.5165877,1810.3,1809.9,5.52493]
[1743402147828,0.7995,1810.3,1810.0,5.52468]
[1743402148120,0.8198,1810.5,1810.2,5.52409]
[1743402148537,0.8198,1810.5,1810.2,5.52405]
[1743402148834,0.8198,1810.7,1810.5,5.52316]
[1743402149419,0.8198,1810.7,1810.4,5.52348]
[1743402149626,0.8198,1810.7,1810.4,6.158578]
[1743402149795,0.8198,1810.7,1810.5,5.52322]
[1743402149990,8.3392077,1810.9,1810.5,5.52322]
[1743402150243,0.1,1810.9,1810.6,5.52277]
[1743402150734,0.1,1810.9,1810.6,11.04564]
[1743402150910,0.1,1810.9,1810.6,5.52277]
[1743402151309,0.1,1810.9,1810.6,6.38936437]
[1743402151826,0.1,1810.9,1810.8,5.52242]
[1743402153215,0.1,1810.9,1810.7,6.28316]
[1743402153617,0.1,1810.9,1810.6,6.38960437]
[1743402153813,0.1,1810.9,1810.6,11.94860437]
[1743402154027,0.1,1810.9,1810.7,1.187591]
[1743402154934,0.1,1810.9,1810.6,16.60502]
[1743402155436,0.1,1810.9,1810.7,5.52271]
[1743402155636,0.1,1810.9,1810.6,5.52301]
[1743402155853,0.9156,1810.9,1810.6,11.07201]
[1743402156139,0.9156,1810.9,1810.6,16.59487]
[1743402156936,0.1,1810.9,1810.8,5.52242]
[1743402158438,0.1,1810.9,1810.7,5.52258]
[1743402160850,0.1,1810.9,1810.6,16.59506]
[1743402161442,0.1,1810.9,1810.7,5.52271]
[1743402163249,0.1,1810.9,1810.6,11.07203]
[1743402163611,0.1,1810.9,1810.6,16.59486]
[1743402164424,0.1,1810.9,1810.6,16.59472]
[1743402166359,0.1,1810.9,1810.7,5.52272]
[1743402166663,0.9011,1810.9,1810.6,11.02795]
[1743402166833,0.1,1810.9,1810.7,5.52257]
[1743402167035,0.1,1810.9,1810.7,11.04518]
[1743402167234,0.1,1810.9,1810.7,5.52255]
[1743402167970,0.1,1810.9,1810.8,5.52242]
[1743402168778,0.97284336,1811.4,1810.8,5.52242]
[1743402168779,0.8011,1811.7,1810.9,0.7741]
[1743402169051,0.8011,1812.0,1811.6,5.51973]
[1743402169352,5.51847,1812.1,1811.7,5.51967]
[1743402169547,5.51847,1812.1,1811.7,0.95143037]
[1743402169924,0.07236,1811.9,1811.7,6.47106037]
[1743402170130,0.07236,1811.9,1811.8,5.51937]
[1743402170644,0.07236,1811.9,1811.7,6.47106037]
[1743402170946,0.07236,1811.9,1811.7,6.47096037]
[1743402171250,0.07236,1811.9,1811.8,5.51937]
[1743402172220,0.07236,1811.9,1811.8,6.622125]
[1743402173248,0.07236,1811.9,1811.8,7.396225]
[1743402173635,0.07236,1811.9,1811.8,12.885225]
[1743402175257,0.07236,1811.9,1811.8,7.396225]
[1743402175427,0.07236,1811.9,1811.8,5.482]
[1743402175627,0.07236,1811.9,1811.8,11.00137]
[1743402176061,0.07236,1811.9,1811.7,5.51945]
[1743402176224,0.07236,1811.9,1811.6,5.51998]
[1743402176424,0.07236,1811.9,1811.6,10.99998]
[1743402176624,0.07236,1811.9,1811.6,10.99986]
[1743402178032,0.07236,1811.9,1811.6,10.99995]
[1743402179061,0.07236,1811.9,1811.6,5.471]
[1743402179277,0.07236,1811.9,1811.6,10.99084]
[1743402179644,0.07236,1811.9,1811.6,16.51067]
[1743402179832,0.07236,1811.9,1811.7,5.51961]
[1743402180250,0.07236,1811.9,1811.7,5.51947]
[1743402180462,0.07236,1811.9,1811.8,5.51937]
[1743402180669,0.07236,1811.9,1811.6,11.8212]
[1743402180963,0.07236,1811.9,1811.6,17.34104]
[1743402181153,0.07236,1811.9,1811.6,11.8212]
[1743402181464,0.07236,1811.9,1811.6,17.34096]
[1743402181764,0.07236,1811.9,1811.6,11.82116]
[1743402181973,0.07236,1811.9,1811.7,5.466]
[1743402183594,0.86616,1811.9,1811.7,5.466]
[1743402183943,0.07236,1811.9,1811.7,5.466]
[1743402184142,0.07236,1811.9,1811.7,10.98566]
[1743402185471,0.07236,1811.9,1811.7,5.466]
[1743402185904,0.7938,1811.8,1811.4,6.35087]
[1743402186179,6.31317,1811.8,1811.5,5.456]
[1743402187270,0.7938,1811.8,1811.5,10.97607]
[1743402187568,0.07236,1811.9,1811.6,5.51997]
[1743402187772,0.07236,1811.9,1811.6,11.03975]
[1743402187982,0.07236,1811.9,1811.6,5.51978]
[1743402188140,0.07236,1811.9,1811.7,5.51957]
[1743402188341,0.07236,1811.9,1811.6,5.51978]
[1743402189141,5.59144,1811.9,1811.6,5.51978]
[1743402189342,5.51939,1811.8,1811.5,0.8304]
[1743402189556,6.31362,1811.7,1811.3,16.4985]
[1743402189881,5.52,1811.6,1811.3,5.457]
[1743402190250,5.52,1811.6,1811.2,10.98004]
[1743402190600,5.52051,1811.5,1811.1,38.2149]
[1743402190895,8.2372877,1811.6,1811.2,5.52118]
[1743402191049,15.26760447,1811.6,1811.2,5.52118]
[1743402191245,9.74736447,1811.6,1811.2,5.52118]
[1743402191455,15.26761447,1811.6,1811.2,5.52118]
[1743402191952,6.31349,1811.7,1811.3,5.52085]
[1743402192881,0.7938,1811.7,1811.3,5.52068]
[1743402193087,0.7938,1811.7,1811.4,5.52055]
[1743402193590,6.31349,1811.7,1811.3,11.04141]
[1743402193800,6.31349,1811.7,1811.3,12.145551]
[1743402194500,0.7938,1811.7,1811.4,5.52054]
[1743402195092,6.31363,1811.7,1811.3,6.625011]
[1743402195259,5.52032,1811.5,1811.1,6.35161]
[1743402195460,0.8252,1811.4,1811.3,5.455]
[1743402195789,6.34582,1811.4,1811.0,5.52181]
[1743402195995,6.34582,1811.4,1811.1,5.459]
[1743402196485,6.34582,1811.4,1811.0,5.52181]
[1743402196653,0.8252,1811.4,1811.1,5.458]
[1743402196852,0.8252,1811.4,1811.1,10.97949]
[1743402197248,0.8252,1811.4,1811.1,10.97931]
[1743402197456,0.8252,1811.6,1811.3,5.52083]
[1743402197655,6.34525,1811.6,1811.1,10.97926]
[1743402197850,6.34525,1811.6,1811.1,11.85056437]
[1743402198086,6.34525,1811.6,1811.2,5.52108]
[1743402198283,6.34525,1811.6,1811.2,5.52099]
[1743402198587,5.5203,1811.5,1811.1,11.85079437]
[1743402198749,5.5203,1811.5,1811.1,17.37209437]
[1743402198952,6.34525,1811.6,1811.2,5.52118]
[1743402199177,6.34525,1811.6,1811.3,5.52089]
[1743402199472,0.8252,1811.8,1811.5,5.52028]
[1743402199673,6.34457,1811.8,1811.5,5.52028]
[1743402199875,0.8252,1811.8,1811.5,5.52028]
[1743402200283,6.34458,1811.8,1811.5,5.49]
[1743402200661,5.51972,1811.7,1811.5,5.49]
[1743402200861,11.03962,1811.7,1811.5,5.49]
[1743402201068,5.51972,1811.7,1811.5,5.49]
[1743402201478,11.03965,1811.7,1811.5,5.49]
[1743402201688,11.03965,1811.7,1811.3,5.52087]
[1743402201889,11.03965,1811.7,1811.3,5.489]
[1743402202191,5.51998,1811.6,1811.3,5.489]
[1743402202612,6.34551,1811.5,1811.2,6.669881]
[1743402202892,5.52063,1811.4,1811.1,5.487]
[1743402203188,5.52063,1811.4,1811.0,5.487]
[1743402203388,5.52063,1811.4,1810.7,3.7849]
[1743402203561,5.52063,1811.4,1810.8,5.489]
[1743402203767,5.52063,1811.4,1810.9,0.5489]
[1743402204283,3.5422877,1811.5,1810.9,0.5489]
[1743402205485,3.5422877,1811.3,1810.7,0.7849]
[1743402205683,0.8252,1811.2,1810.8,5.487]
[1743402206087,2.7170877,1811.1,1810.8,5.487]
[1743402206300,2.7170877,1810.9,1810.6,31.863]
[1743402206587,2.7170877,1810.9,1810.6,37.352]
[1743402210407,2.7170877,1810.9,1810.2,5.52402]
[1743402210408,2.7170877,1810.9,1810.2,6.33622]
[1743402210610,0.7635,1810.8,1810.4,5.52355]
[1743402210911,6.05,1810.9,1810.6,5.52286]
[1743402211101,0.7635,1811.0,1810.6,5.52286]
[1743402211303,0.7635,1811.0,1810.7,5.52271]
[1743402211490,9.5305877,1811.3,1810.8,6.33462]
[1743402211809,3.7635,1810.4,1809.5,0.8122]
[1743402212011,2.7170877,1809.9,1809.5,0.8122]
[1743402212228,3.4805877,1809.9,1809.5,0.8122]
[1743402212413,5.5255,1809.8,1809.4,5.616]
[1743402212601,11.83274588,1809.9,1809.4,5.616]
[1743402212805,2.7170877,1809.7,1809.4,5.616]
[1743402213407,0.7635,1809.9,1809.4,5.616]
[1743402213408,3.4805877,1809.9,1809.4,5.616]
[1743402213618,3.88364647,1809.9,1809.4,5.616]
[1743402213921,3.88364647,1809.9,1809.1,0.1]
[1743402213922,2.7170877,1809.5,1809.1,0.1]
[1743402214127,2.7170877,1809.3,1809.1,0.1]
[1743402215724,6.29002,1809.5,1809.1,0.1]
[1743402216018,0.7635,1809.5,1809.1,0.1]
[1743402217119,9.14602333,1809.7,1809.1,5.62743]
[1743402217321,0.7635,1809.8,1809.3,5.52672]
[1743402217494,3.4990821,1809.9,1809.4,5.642]
[1743402217689,3.4990821,1809.9,1809.5,14.5]
[1743402217890,9.0243021,1809.9,1809.5,14.5]
[1743402218118,5.52548,1809.8,1809.5,14.5]
[1743402218304,14.5497221,1809.9,1809.5,14.5]
[1743402218504,5.52552,1809.8,1809.5,14.5]
[1743402219123,12.50626221,1809.8,1809.5,14.5]
[1743402219319,6.98050221,1809.8,1809.5,14.5]
[1743402219525,5.52552,1809.8,1809.4,5.642]
[1743402219896,11.05128,1809.8,1809.4,20.142]
[1743402220403,11.05128,1809.8,1809.4,5.642]
[1743402220623,5.52552,1809.8,1809.4,5.642]
[1743402221001,3.4990821,1809.9,1809.4,25.66853]
[1743402221214,5.52502,1810.0,1809.6,5.52602]
[1743402221525,11.05004,1810.0,1809.5,11.05245]
[1743402221837,5.52502,1810.0,1809.5,11.05245]
[1743402222000,5.52502,1810.0,1809.6,5.52604]
[1743402222600,5.52502,1810.0,1809.5,5.52621]
[1743402222805,5.52502,1810.0,1809.5,12.169251]
[1743402224137,5.52502,1810.0,1809.5,12.169191]
[1743402224436,11.05015,1810.0,1809.5,6.642981]
[1743402224640,5.52532,1809.9,1809.5,6.642981]
[1743402224847,8.62134333,1809.9,1809.6,5.623]
[1743402227047,5.52532,1809.9,1809.6,5.623]
[1743402227851,5.52502,1810.0,1809.6,11.14903]
[1743402230447,3.09602333,1810.1,1809.6,5.623]
[1743402230648,6.35226,1810.2,1809.7,0.5623]
[1743402230863,6.35226,1810.2,1809.8,5.52533]
[1743402232061,6.6,1810.4,1809.9,5.52488]
[1743402232062,9.41596333,1810.4,1809.9,5.52488]
[1743402232270,5.52396,1810.3,1810.0,5.52484]
[1743402232471,5.52396,1810.3,1810.0,5.604]
[1743402235371,11.04815,1810.3,1810.0,5.604]
[1743402236572,5.52396,1810.3,1810.0,5.604]
[1743402236932,11.04818,1810.3,1810.0,5.604]
[1743402237172,5.52425,1810.2,1810.0,5.604]
[1743402237664,8.23900856,1810.2,1810.0,5.604]
[1743402240262,5.52473,1810.1,1809.7,6.3178]
[1743402240468,2.71475856,1810.0,1809.7,11.8858]
[1743402240893,2.71475856,1810.0,1809.7,5.5256]
[1743402241188,9.04079856,1810.0,1809.6,11.09107]
[1743402241577,9.04079856,1810.0,1809.6,16.61694]
[1743402241777,5.52473,1810.1,1809.7,5.52574]
[1743402241974,5.52473,1810.1,1809.8,5.52546]
[1743402242155,9.03853856,1810.4,1809.9,6.30536]
[1743402242359,9.03853856,1810.4,1810.0,5.52477]
[1743402242583,9.03853856,1810.4,1809.9,6.30536]
[1743402242790,8.23903856,1810.2,1809.9,0.7804]
[1743402246165,2.71475856,1810.2,1809.9,6.30545]
[1743402246575,8.23907856,1810.2,1809.9,0.7804]
[1743402246889,2.71475856,1810.2,1809.9,6.30555]
[1743402248591,9.03741856,1810.7,1810.3,5.52373]
[1743402248902,2.71475856,1810.7,1810.4,5.52347]
[1743402249194,9.47596079,1810.8,1810.4,11.07545]
[1743402249568,2.71475856,1810.7,1810.4,11.07545]
[1743402249769,2.71475856,1810.7,1810.4,16.59887]
[1743402250181,2.71475856,1810.8,1810.5,5.52331]
[1743402250394,3.51465856,1810.9,1810.6,5.523]
[1743402250965,9.03677856,1810.9,1810.5,5.52331]
[1743402251178,2.71475856,1810.8,1810.5,5.52331]
[1743402252167,9.03677856,1810.9,1810.5,11.04645]
[1743402252500,3.51465856,1810.9,1810.6,5.52298]
[1743402252792,2.71475856,1810.9,1810.6,5.52298]
[1743402253464,2.71475856,1810.9,1810.5,6.30354]
[1743402253465,2.71475856,1810.9,1810.5,6.30352]
[1743402253681,9.06067642,1810.9,1810.5,6.30352]
[1743402253983,9.06054642,1810.9,1810.5,6.30352]
[1743402254592,8.23688856,1810.9,1810.5,6.30352]
[1743402254806,2.71475856,1810.9,1810.6,5.52292]
[1743402256576,5.52182,1811.0,1810.6,5.52281]
[1743402256894,2.71475856,1811.0,1810.7,11.04512]
[1743402257092,2.71475856,1811.0,1810.7,5.52256]
[1743402257486,2.71475856,1811.0,1810.8,5.52238]
[1743402257900,2.71475856,1811.0,1810.7,5.52256]
[1743402259005,2.71475856,1811.0,1810.6,5.52297]
[1743402259193,8.58819442,1811.0,1810.7,5.523]
[1743402260282,5.52212,1810.9,1810.7,5.523]
[1743402260905,8.58819442,1811.0,1810.7,5.523]
[1743402261419,5.52212,1810.9,1810.5,6.30371]
[1743402261581,0.7753,1810.7,1810.4,5.5236]
[1743402261782,1.67655886,1810.7,1810.4,5.515]
[1743402261999,0.7753,1810.7,1810.4,11.03852]
[1743402264416,6.29741,1810.9,1810.5,5.52319]
[1743402264711,6.8253,1811.1,1810.8,5.52242]
[1743402266023,6.8253,1811.1,1810.9,5.52208]
[1743402266326,5.52079,1811.4,1811.0,5.52162]
[1743402266623,8.23577856,1811.3,1810.9,5.52197]
[1743402267007,8.23577856,1811.3,1810.9,11.04385]
[1743402267329,2.71475856,1811.3,1811.0,5.52178]
[1743402272227,2.71475856,1811.3,1811.0,11.04339]
[1743402272623,2.71475856,1811.3,1811.0,5.52161]
[1743402273011,2.71475856,1811.1,1810.7,6.33595]
[1743402273214,2.71475856,1811.1,1810.8,11.01136]
[1743402275731,0.797,1811.2,1810.8,16.53366]
[1743402275943,0.797,1811.2,1810.9,5.52196]
[1743402276103,2.71475856,1811.3,1810.9,5.52192]
[1743402276303,2.71475856,1811.3,1811.0,5.52178]
[1743402276506,8.23591856,1811.3,1810.9,5.52192]
[1743402276806,9.13921042,1811.3,1810.8,11.01138]
[1743402277026,2.71475856,1811.1,1810.9,5.484]
[1743402277338,0.797,1811.0,1810.9,5.484]
[1743402280035,3.55e-06,1811.9,1811.8,6.29157]
[1743402280255,3.55e-06,1811.9,1811.8,16.047694]
[1743402280749,3.55e-06,1811.9,1811.8,7.472694]
[1743402280905,3.55e-06,1811.9,1811.8,7.531324]
[1743402281263,3.55e-06,1811.9,1811.5,11.87348]
[1743402281404,3.55e-06,1811.9,1811.5,11.10126]
[1743402281836,3.55e-06,1811.9,1811.5,5.581]
[1743402282042,3.55e-06,1811.9,1811.4,5.52053]
[1743402282257,3.08726728,1811.7,1811.3,5.58]
[1743402282419,3.08726728,1811.7,1811.3,5.583]
[1743402282747,9.46761101,1811.7,1811.3,5.583]
[1743402282908,0.797,1811.6,1811.3,5.583]
[1743402283740,0.797,1811.6,1811.3,11.10383]
[1743402286626,0.797,1811.6,1811.3,5.583]
[1743402287011,6.31698,1811.6,1811.1,5.52146]
[1743402287212,7.3434471,1811.6,1811.2,5.563]
[1743402287412,1.8234671,1811.6,1811.2,11.08416]
[1743402287625,0.797,1811.6,1811.4,5.52053]
[1743402287854,0.797,1811.6,1811.3,5.52078]
[1743402288456,0.797,1811.6,1811.3,5.52072]
[1743402291234,5.52254,1810.8,1810.4,0.40888567]
[1743402291435,5.52322,1810.6,1809.9,0.7597]
[1743402291668,0.7661,1810.5,1810.2,5.52405]
[1743402292635,0.7661,1810.5,1810.3,5.52392]
[1743402292839,0.7661,1810.5,1810.1,5.5243]
[1743402293150,0.7661,1810.5,1810.2,5.52422]
[1743402293349,0.7661,1810.5,1810.3,0.552422]
[1743402294559,5.52418,1810.3,1809.9,0.7597]
[1743402294734,5.52418,1810.3,1809.8,11.13333]
[1743402296059,5.52428,1810.2,1809.8,11.13333]
[1743402296277,5.52418,1810.3,1809.8,11.13322]
[1743402296449,5.52418,1810.3,1809.9,6.638482]
[1743402296652,5.52418,1810.3,1809.9,1.113322]
[1743402297254,5.52418,1810.3,1809.9,6.638352]
[1743402297437,5.52398,1810.3,1809.9,6.638352]
[1743402297759,5.52398,1810.3,1809.9,6.638312]
[1743402297968,5.52398,1810.3,1810.0,0.6638312]
[1743402299169,5.52365,1810.4,1809.9,5.52499]
[1743402299389,5.52405,1810.3,1809.9,5.52499]
[1743402300039,5.52365,1810.4,1809.9,11.04999]
[1743402300354,5.52365,1810.4,1810.0,5.52469]
[1743402300731,11.04745,1810.4,1810.0,5.52469]
[1743402300938,5.52365,1810.4,1810.0,6.629658]
[1743402301136,5.52365,1810.4,1810.0,1.104968]
[1743402302066,5.52408,1810.3,1810.0,1.104968]
[1743402303269,5.52486,1810.0,1809.5,5.5262]
[1743402303575,5.52497,1810.0,1809.5,5.52618]
[1743402304247,5.52545,1809.9,1809.4,11.89351]
[1743402304452,11.0509,1809.9,1809.4,17.42002]
[1743402304777,5.52493,1810.0,1809.6,5.52596]
[1743402304978,12.36626,1810.3,1809.5,5.52635]
[1743402305152,12.36626,1810.3,1809.9,5.525]
[1743402305471,6.31626,1810.3,1809.8,11.89135]
[1743402305976,11.84049,1810.3,1809.9,5.52513]
[1743402306173,5.52438,1810.2,1809.8,6.3659]
[1743402306478,5.52469,1810.1,1809.8,5.578]
[1743402307096,5.52495,1810.0,1809.6,6.31379]
[1743402307386,5.52522,1809.9,1809.7,5.583]
[1743402307990,6.31725,1810.0,1809.7,5.583]
[1743402309679,12.36657,1810.2,1809.8,5.52537]
[1743402309858,17.89105,1810.2,1809.8,5.52537]
[1743402310676,5.52458,1810.1,1809.7,11.10855]
[1743402310885,11.57427,1810.2,1809.8,5.5252]
[1743402311047,11.57427,1810.2,1809.8,11.05048]
[1743402311376,11.57427,1810.2,1809.8,5.5252]
[1743402312076,5.52456,1810.1,1809.7,11.89666]
[1743402312252,5.52456,1810.1,1809.7,17.42221]
[1743402312582,5.52427,1810.2,1809.8,5.52544]
[1743402312782,5.52394,1810.3,1809.8,11.05068]
[1743402312951,5.52394,1810.3,1809.9,5.52515]
[1743402313148,5.52394,1810.3,1809.9,1.105039]
[1743402313354,5.52454,1810.2,1809.7,11.89656]
[1743402313657,8.23945489,1810.2,1809.7,11.8965]
[1743402313971,8.23945489,1810.2,1809.8,5.52531]
[1743402314582,13.76397489,1810.2,1809.8,5.52531]
[1743402314978,13.76397489,1810.2,1809.7,6.3709]
[1743402315171,13.76397489,1810.2,1809.8,0.63709]
[1743402315368,5.52459,1810.1,1809.7,0.7879]
[1743402315568,5.5256,1809.8,1809.3,0.7872]
[1743402315768,8.24051489,1809.8,1809.4,5.565]
[1743402315986,8.24051489,1809.8,1809.4,6.20022]
[1743402316761,8.24116489,1809.6,1809.3,0.7872]
[1743402317281,2.71491489,1809.6,1809.3,0.7872]
[1743402317779,5.52578,1809.7,1809.3,0.7872]
[1743402317953,5.52548,1809.8,1809.3,0.7872]
[1743402318153,11.05115,1809.8,1809.3,0.7872]
[1743402320077,5.52548,1809.8,1809.3,0.7872]
[1743402320775,5.52579,1809.7,1809.4,5.56]
[1743402322154,5.52548,1809.8,1809.4,5.56]
[1743402322155,11.0512,1809.8,1809.4,5.56]
[1743402322355,5.52592,1809.7,1809.4,5.56]
[1743402322585,11.05193,1809.7,1809.3,6.3402]
[1743402322787,5.52592,1809.7,1809.3,6.3402]
[1743402324470,5.52592,1809.7,1809.3,11.86718]
[1743402324675,5.52547,1809.8,1809.3,11.86718]
[1743402325279,5.5258,1809.7,1809.3,11.86718]
[1743402325468,5.5258,1809.7,1809.3,11.86705]
[1743402326080,0.55,1809.8,1809.4,5.52657]
[1743402326470,6.0756,1809.8,1809.4,5.52657]
[1743402327071,5.52591,1809.7,1809.3,11.86699]
[1743402327591,5.52591,1809.7,1809.3,17.39377]
[1743402328193,5.52591,1809.7,1809.4,5.52669]
[1743402330804,6.05,1809.9,1809.6,5.52604]
[1743402331094,6.05,1809.9,1809.6,6.31664]
[1743402331993,11.57516,1809.9,1809.6,0.7906]
[1743402332166,17.10056,1809.9,1809.6,0.7906]
[1743402332368,5.52557,1809.8,1809.4,5.52667]
[1743402332571,5.52557,1809.8,1809.5,5.517]
[1743402332572,11.05183,1809.7,1809.5,5.517]
[1743402332776,11.05183,1809.7,1809.3,11.83657]
[1743402333094,5.52583,1809.7,1809.3,11.83657]
[1743402333295,5.52583,1809.7,1809.3,17.36337]
[1743402333459,5.52583,1809.7,1809.4,5.52666]
[1743402334993,11.05183,1809.7,1809.3,6.3174]
[1743402335200,11.05183,1809.7,1809.3,11.8304]
[1743402335391,6.07636,1809.6,1809.2,5.511]
[1743402335896,6.07636,1809.6,1809.1,17.46854]
[1743402335897,5.52657,1809.5,1809.1,17.46854]
[1743402336271,6.07636,1809.6,1809.2,5.52727]
[1743402336902,11.6027,1809.6,1809.2,5.52727]
[1743402337113,5.52578,1809.7,1809.3,6.079697]
[1743402337617,5.52578,1809.7,1809.4,5.52668]
[1743402337791,11.5752,1809.9,1809.5,6.31686]
[1743402338311,11.5752,1809.9,1809.5,11.84386]
[1743402339008,5.5252,1809.9,1809.5,17.37008]
[1743402339503,5.5252,1809.9,1809.5,11.84382]
[1743402339673,8.24092586,1809.9,1809.5,11.84382]
[1743402340432,13.76631586,1809.9,1809.5,11.84382]
[1743402340926,8.24092586,1809.9,1809.5,11.84382]
[1743402341818,5.5257,1809.8,1809.5,6.3176]
[1743402343890,11.05141,1809.8,1809.5,6.3176]
[1743402344089,8.24170586,1809.7,1809.3,6.35019]
[1743402344392,8.24170586,1809.7,1809.3,11.85419]
[1743402344606,2.71572586,1809.7,1809.1,5.62759]
[1743402344817,5.52646,1809.5,1809.1,11.95679]
[1743402346702,5.52646,1809.5,1809.1,17.48418]
[1743402346904,5.52646,1809.5,1809.2,5.52729]
[1743402347530,11.05307,1809.5,1809.1,11.95659]
[1743402347730,5.52672,1809.4,1809.1,11.95659]
[1743402347893,5.52646,1809.5,1809.1,11.95659]
[1743402348228,5.52646,1809.5,1809.2,5.52729]
[1743402348398,5.52646,1809.5,1809.1,11.95659]
[1743402349504,11.05312,1809.5,1809.1,11.95659]
[1743402349709,5.52646,1809.5,1809.1,11.95659]
[1743402351727,5.52646,1809.5,1809.1,6.45059]
[1743402351927,5.5267,1809.4,1809.1,5.586]
[1743402352097,5.5267,1809.4,1809.1,11.11355]
[1743402354234,2.71572586,1809.5,1809.1,0.1]
[1743402354412,8.99932586,1809.2,1809.1,0.1]
[1743402354615,8.99932586,1809.2,1808.4,11.01957]
[1743402354616,5.52934,1808.6,1808.2,5.53009]
[1743402354819,8.24503586,1808.6,1808.2,6.35329]
[1743402355135,8.24503586,1808.6,1808.2,11.86129]
[1743402356311,5.52944,1808.5,1808.2,6.3312]
[1743402357042,8.24503586,1808.6,1808.2,6.3312]
[1743402357211,5.52944,1808.5,1808.2,0.8232]
[1743402357407,8.24581586,1808.3,1808.1,0.1]
[1743402357608,2.71572586,1808.2,1808.1,0.1]
[1743402358509,8.79608586,1808.2,1808.1,0.1]
[1743402358733,12.54998586,1808.2,1808.1,0.1]
[1743402358934,14.96299345,1808.2,1808.1,0.1]
[1743402359124,15.38326514,1808.2,1808.1,0.1]
[1743402368566,21.43326514,1808.2,1808.1,0.1]
[1743402368753,25.03054541,1808.2,1808.1,0.1]
[1743402368958,51.30808641,1808.2,1808.1,1.07e-06]
[1743402369125,43.19248441,1808.2,1808.1,1.07e-06]
[1743402369763,40.88152641,1808.2,1808.1,1.07e-06]
[1743402369949,39.29742241,1808.2,1808.1,1.07e-06]
[1743402370269,37.70219041,1808.2,1808.1,1.07e-06]
[1743402371163,6.28639,1807.6,1807.1,11.1255]
[1743402371390,2.71572586,1807.4,1807.1,11.1255]
[1743402372230,2.71572586,1807.2,1807.1,0.1]
[1743402373831,8.24914586,1807.2,1807.1,0.1]
[1743402375641,14.29914586,1807.2,1807.1,0.1]
[1743402376227,8.76572586,1807.2,1807.1,0.1]
[1743402376525,6.05,1807.2,1807.1,0.1]
[1743402377785,6.05,1807.2,1807.1,6.45812]
[1743402377950,6.05,1807.2,1807.1,11.94412]
[1743402378761,6.05,1807.2,1807.1,6.4104]
[1743402379678,6.05,1807.2,1807.1,0.1]
[1743402379877,13.01330459,1807.2,1807.1,0.1]
[1743402380078,4.14561045,1807.2,1807.1,0.1]
[1743402380582,9.67903045,1807.2,1807.1,0.1]
[1743402380751,10.22903045,1807.2,1807.1,0.1]
[1743402380952,4.69561045,1807.2,1807.1,0.1]
[1743402381152,3.0,1807.3,1807.1,0.1]
[1743402383452,8.53324,1807.3,1807.1,0.1]
[1743402384576,14.06663,1807.3,1807.1,0.1]